{"text_format":"3","workbook":"xlsx","n_sheets":3,"sheets":["general","SW-R","SW-L"],"not_rendered":{"images":13,"defined_names":1},"read":"whole","date_system":"1900"}

{"sheet":"general","index":0,"n_rows":99,"n_cols":42,"rows_kept":99,"merged":[[1,20,2,27],[3,23,3,27],[4,23,4,27],[5,23,5,27],[6,9,6,10],[6,16,6,17],[6,23,6,27],[8,4,8,5],[8,16,8,17],[9,16,9,17],[11,2,20,2],[12,18,15,18],[15,8,18,8],[16,18,18,18],[17,19,20,19],[19,8,20,16],[21,2,22,2],[22,8,23,15],[23,2,27,2],[25,18,26,18],[26,8,27,15],[32,23,33,27],[42,23,43,27],[46,17,47,27],[49,17,50,27],[54,6,54,11],[55,12,55,15],[55,17,55,18],[55,19,55,20],[55,21,55,22],[55,23,55,24],[56,17,56,18],[56,19,56,20],[56,21,56,22],[56,23,56,24],[57,17,58,20],[57,21,58,27],[58,13,58,15],[59,21,60,27],[61,21,61,24],[61,26,61,27],[62,21,62,24],[62,26,62,27]]}
[{"$nulls":29},"č.jaz.",{"$f":"VLOOKUP(E5,AD3:AE11,2,FALSE)","v":1},null,"SVYHLEDAT","CZ","EN","DE","PL","FR","NL","EST","FIN","RU"]
[{"$nulls":20},{"$f":"VLOOKUP(AG10,AG2:AR85,$AE$1+1,FALSE)","v":"VERTIKÁLNÍ VEDENÍ S PŘEDMONT. HŘÍDELÍ  (VL-T)"},{"$nulls":8},"Jazyk","číslo",null,{"$f":"VLOOKUP(AH2,AH2:AR85,$AE$1,FALSE)","v":"Zvolit jazyk: "},"Zvolit jazyk: ","Select a language:","Wählen Sie eine Sprache","Wybierz język","Sélectionner une langue","Kies een taal:","Valige keel","Valitse kieli:","Выберите язык:"]
[null,"Zvol jazyk:",{"$nulls":5},{"$f":"VLOOKUP(AG3,AG2:AR85,$AE$1+1,FALSE)","v":"Šířka otvoru:"},null,null,"mm",{"$nulls":18},"CZ",1,null,{"$f":"VLOOKUP(AH3,AH3:AR86,$AE$1,FALSE)","v":"Šířka otvoru:"},"Šířka otvoru:","Opening width","Lichte Breite","Szerokość otworu","LARGEUR DE BAIE","Dagmaat breedte","Ava laius","Oviaukon leveys","Ширина проема"]
[null,"Select a language:",{"$nulls":9},{"$f":"VLOOKUP(AH88,AH88:AR164,$AE$1,FALSE)","v":"Prosím, vyplňte pole, která jsou označena barevně!"},{"$nulls":11},{"$f":"VLOOKUP(AG13,AG2:AR85,$AE$1+1,FALSE)","v":"Max. W x H 5000 x 5500 max 25 m2"},{"$nulls":5},"EN",2,null,"Výška otvoru: ","Výška otvoru: ","Opening height","Lichte Höhe","Wysokość otworu","HAUTEUR DE BAIE","Dagmaat hoogte","Ava kõrgus","Oviaukon korkeus","Высота проема"]
[null,"Wählen Sie eine Sprache:",null,null,"CZ",null,null,{"$f":"VLOOKUP(AG4,AG2:AR85,$AE$1+1,FALSE)","v":"Výška otvoru: "},null,null,"mm",{"$nulls":12},{"$f":"VLOOKUP(AG11,AG2:AR85,$AE$1+1,FALSE)","v":"PRUŽINY NAD PŘEKLADEM"},{"$nulls":5},"DE",3,null,"POHLED ZEVNITŘ","POHLED ZEVNITŘ","INTERIOR VIEW","INNENANSICHT","Widok od środka","VUE INTERIEURE","BINNENAANZICHT","seestvaade","SISÄLTÄPÄIN KUVATTUNA","Вид изнутри"]
[null,"Wybierz język:",{"$nulls":21},{"$f":"VLOOKUP(AG12,AG2:AR85,$AE$1+1,FALSE)","v":"PANEL 40/80mm"},{"$nulls":5},"PL",4,null,"ŘEZ A-A","ŘEZ A-A","SECTION A-A","DURCHSCHNITT A-A","Przekrój A-A","COUPE A-A","DOORSNEDE A-A","vaade A-A","LEIKKAUS A-A","Разрез А-А"]
[null,"Sélectionner une langue:",{"$nulls":5},{"$f":"VLOOKUP(AG92,AG4:AR92,$AE$1+1,FALSE)","v":"Ovládání"},{"$nulls":5},{"$f":"IF(OR(J7=\"\",J7=AG93),\"\",VLOOKUP(AG97,AG8:AR104,$AE$1+1,FALSE))","v":""},{"$nulls":9},{"$f":"VLOOKUP(AG14,AG2:AR85,$AE$1+1,FALSE)","v":"Vrata ovládaná motorem"},{"$nulls":5},"FR",5,null,"ŘEZ B-B","ŘEZ B-B","SECTION B-B","DURCHSCHNITT B-B","Przekrój B-B","COUPE B-B","Max. W x H 5000 x 5500 max 25 m2","VAADE B-B","LEIKKAUS B-B","Разрез B-B"]
[null,"Kies een taal:",null,null,{"$f":"VLOOKUP(AG5,AG2:AR85,$AE$1+1,FALSE)","v":"POHLED ZEVNITŘ"},{"$nulls":13},{"$f":"VLOOKUP(AG6,AG2:AR85,$AE$1+1,FALSE)","v":"ŘEZ A-A"},{"$nulls":10},"NL",6,null,"POZNÁMKA:","POZNÁMKA:","NOTE:","ACHTUNG:","Uwaga:","Remarque:","OPMERKING:","MÄRKUS","HUOMAUTUS:","ПРИМЕЧАНИЯ:"]
[null,"Valige keel",{"$nulls":27},"EST",7]
[null,"Valitse kieli:",{"$nulls":14},"D= min. 600",{"$nulls":12},"FIN",8,null,"VERTIKÁLNÍ VEDENÍ S PŘEDMONT. HŘÍDELÍ  (VL-T)","VERTIKÁLNÍ VEDENÍ S PŘEDMONT. HŘÍDELÍ  (VL-T)","PRE-ASSEMBLED VERTICAL LIFT SYSTEM (VL-T)","VERTIKALFÜHRUNG MIT VORMONTIERTER WELLE (VL-T)","PRZYGOTOWANIE_KONSTRUKCYJNE Zarządzanie budynkiem z pre pionowy wał (VL-T)","LEVEE VERTICALE (VL-T)","VERTICAAL PLAFOND SYSTEEM (VL-T)","Vertikaaltõste (VL-T)","SUORANOSTO (VL-T)","ВЕРТИКАЛЬНЫЙ ПОДЪЕМ С ПРЕДСОБРАННЫМ ВАЛОМ (VL-T)"]
[null,"Выберите язык:",{"$nulls":27},"RU",9,null,"PRUŽINY NAD PŘEKLADEM","PRUŽINY NAD PŘEKLADEM","springs above lintel","Federn oberhalb des Sturzes","SPRĘŻYNY NAD NADPROŻEM","RESSORTS AVANTS DEPORTES DU LINTEAU","veren boven latei","Vedrud ava kohal","jouset ovipalkkin päällä","нижнее расположение вала"]
[null,null,{"$f":"\"Z= \"&$N$59","v":"Z= NENÍ POŽADOVÁNO"},{"$nulls":29},"PANEL 40/80mm","PANEL 40/80mm","SECTION THICKNESS 40/80 mm","Paneel 40/80 mm","Panel 40/80 mm","40/80 mm PANNEAU","PANEEL 40/80 mm","Paneel 40/80 mm","Lamelli 40/80mm","ТОЛЩИНА СЕКЦИИ 40/80мм "]
[{"$nulls":18},{"$f":"\"F= \"&P53","v":"F= "},{"$nulls":13},"Max. W x H 5000 x 5500 max 25 m2","Max. W x H 5000 x 5500 max 25 m2","Max. W x H 5000 x 5500 max 25 m2","Max. W x H 5000 x 5500 max 25 m2","Max. W x H 5000 x 5500 max 25 m2","Max. W x H 5000 x 5500 max 25 m2","Max. W x H 5000 x 5500 max 25 m2","Max. W x H 5000 x 5500 max 25 m2","Max. W x H 5000 x 5500 max 25 m2","макс. ШхВ (WxH) 5000 x 5500 max 25 m2"]
[{"$nulls":32},"Vrata ovládaná motorem","Vrata ovládaná motorem","Door operated by motor","Tore mit Antrieb","Bramy z napędem","Motorisée des portes","elektrisch bediende deuren","Tagasi hoidja mootori","Return ohjaus moottori","Возврат управления двигателем"]
[]
[null,{"$f":"AG33","v":"NEZBYTNÝ VOLNÝ PROSTOR"},{"$nulls":6},{"$f":"\"J= \"&$P$54","v":"J= "}]
[{"$nulls":32},"Montáž na cihlové zdivo","Montáž na cihlové zdivo","mounting on brickwork","Montage auf Mauerwerk und Ziegel","montaż do muru i cegły","montage sur béton","montage op beton","Paigaldus kiviseinale","asennus tiiliseinän","монтаж на бетон"]
[{"$nulls":32},"Montáž na porobeton","Montáž na porobeton","mounting on cellular concrete","Montage auf Porenbeton oder Gasbeton","montaż do betonu porowatego","montage sur parpaing creux","montage op gasbeton","Paigaldus poorbetoonile","asennus betoniin","монтаж на газобетон"]
[{"$nulls":32},"Montáž na opláštění","Montáž na opláštění","mounting on insulated cladding","Montage auf ISO-Trapezblechfassade","montaż do płaszcza","montage sur structure métallique  (a fournir par le charpentier)","montage op binnendooscontructie met damwandbeplating","Paigaldus soojustatud seinapaneelile","asennus eristettyyn seinäelementtiin","монтаж на металлокаркас"]
[{"$nulls":8},{"$f":"VLOOKUP(AG44,AG2:AR85,$AE$1+1,FALSE)","v":"nezbytný boční prostor pro motor nebo řetězový pohon ( L nebo R )"}]
[]
[null,null,{"$f":"\"E= \"&$P$55","v":"E= "},{"$nulls":29},"PRÁCE, KTERÉ MUSÍ BÝT PROVEDENY ZÁKAZNÍKEM PŘED MONTÁŽÍ, POKUD NEBYLO DOHODNUTO JINAK","PRÁCE, KTERÉ MUSÍ BÝT PROVEDENY ZÁKAZNÍKEM PŘED MONTÁŽÍ, POKUD NEBYLO DOHODNUTO JINAK","WORK TO BE CARRIED OUT BY CUSTOMER, UNLESS IN ADVANCE OTHERWISE IS AGREED IN WRITING.","VORBEREITUNGEN UND ARBEITEN DIE VOM AUFTRAGGEBER ZU ERBRINGEN SIND, AUßER BEI SCHRIFTLICHER VEREINBARUNG IM VORAUS:","PRACE, KTÓRE MUSZĄ ZOSTAĆ WYKONANE PRZEZ KLIENTA PRZED WYKONANIEM MONTAŻU, O ILE NIE UZGODNIONO INACZEJ.","APPROVISIONNEMENT & TRAVAUX INCOMBANT AU MAITRE D'OUVRAGE  (sauf accord contraire)","VOORZIENINGEN EN WERKZAAMHEDEN DOOR OPDRACHTGEVER TE VERZORGEN, TENZIJ VOORAF SCHRIFTELIJK ANDERS IS OVEREENGEKOMEN ","Kliendi poolt tehtavad ettevalmistustööd v.a juhul kui pole kirjalikult teistmoodi kokku lepitud","ASIAKKAAN TEHTÄVÄT TYÖT, ELLEI ETUKÄTEEN KIRJALLISESTI MUUTOIN SOVITTU ","МАТЕРИАЛЫ И ПРОВЕДЕНИЕ РАБОТ ОБЕСПЕЧИВАЮТСЯ КЛИЕНТОМ,ЕСЛИ ИНОЕ НЕ ОГОВОРЕНО ЗАРАНЕЕ В ПИСЬМЕННОЙ ФОРМЕ"]
[{"$nulls":8},{"$f":"VLOOKUP(AG45,AG2:AR85,$AE$1+1,FALSE)","v":"montážní plocha pro řídící jednotku motoru, rozměr 250 x 400 mm"},{"$nulls":23},"Konstrukční:","Konstrukční:","Constructional :","Bauseits:","Konstrukcyjne:","Structure: ","Bouwkundig:","Ehituslikud:","\nRakenteellinen:","Конструктивно:"]
[null,null,{"$f":"\"H= \"&J5","v":"H= "},{"$nulls":29},"Příprava montážních ploch pro vedení vrat a pro pružiny.","Příprava montážních ploch pro vedení vrat a pro pružiny.","Supply and fix mounting frame and mounting surfaces for the rails and the spring packet in case of aerated concrete or sandwichpanels etc.","Ein stählerner Montagerahmen zur Befestigung der vertikalen Laufschienen und des Federpakets bei nicht tragfähigen Flächen wie z.B. Porenbeton, Gasbeton, Isolationspanelen u.s.w..","Przygotowanie powierzchni montażowych dla prowadzenia bramy oraz dla sprężyn.","Préparation de la structure de montage des rails de guidage et des ressorts pour une pose sur panneaux isolants","Een stalen montageframe voor de bevestiging van de verticale looprails en het verenpakket bij niet dragende montagevlakken, zoals gasbeton, isolatiepanelen, sandwichpanelen enz.","Avaettevalmistusraami tarnimine ja paigaldus siinide ja vedrude kinnituseks","Toimittaa ja asentaa asennuskehyksen ja asennuspinnat kiskoille ja jousipaketille tapauksessa jossa kevytbetooni tai sandwich-paneeli jne.","Стальная монтажная рама для установки вертикальных направляющих и пружин в случае не несущих монтажных поверхностей, таких как: газобетон, изоляционные панели, сэндвич-панели и т.д."]
[{"$nulls":8},{"$f":"VLOOKUP(AG46,AG2:AR85,$AE$1+1,FALSE)","v":"osa cca 1.400 až 1.500 mm od podlahy"},{"$nulls":14},{"$f":"VLOOKUP($AG$17,$AG$2:$AR$85,$AE$1+1,FALSE)","v":"Montáž na cihlové zdivo"},{"$nulls":8},"Nezbytné montážní plochy a volný prostor dle nákresu.","Nezbytné montážní plochy a volný prostor dle nákresu.","Necessary mounting surface and free room as shown.","Benötigte Montageflächen und Freiräume gemäß Zeichnung.","Niezbędne powierzchnie montażowe oraz wolna przestrzeń wg rysunku.","Adapter la structure et l' espace disponible selon nos plans de réservations ci-contre","Benodigde montagevlakken en vrije ruimtes, volgens tekening.","Piisav paigaldusruum vastavalt lisatud joonisele","Tarvittava kiinnityspinta ja vapaa tilaa kuvan mukaisesti.","Необходимые монтажные поверхности и свободное пространство в соответствии с чертежом"]
[{"$nulls":18},{"$f":"J5","v":0},{"$nulls":13},"Elekrická příprava (pro elektricky ovládaná sekční vrata): ","Elekrická příprava (pro elektricky ovládaná sekční vrata): ","Electrical supply required to be :","Elektrisch (bei elektrisch bedienten Toren):","Przygotowanie elektryczne (dla elektrycznie sterowanej bramy segmentowej) :","Alimentation electrique  (pour porte motorisée) :","Elektrisch: (bij elektrisch bediende deuren)","Elektriliselt avatavate uste jaoks","Sähkönsyöttö tarvittu:","Электрика (для ворот с электрическим управлением):"]
[{"$nulls":8},{"$f":"VLOOKUP(AG47,AG2:AR85,$AE$1+1,FALSE)","v":"zásuvka CEE 16 A, 5P, 400 V, jištěno 6 A (10 A) jističem, proudový chránič I=30 mA"},{"$nulls":23},"Zásuvka CEE 16 A, 5P, 400 V = zásuvka s nulovým a zemnícím vodičem","Zásuvka CEE 16 A, 5P, 400 V = zásuvka s nulovým a zemnícím vodičem","400V/230V 3 phase neutral and earth terminating, provided by euro plug socket.","Stromzufuhr 400V/230V mittels Eurosteckdose, 3 Phasen+0+PE max.1 meter vom Schaltkasten.","Gniazdo CEE 16 A, 5P, 400 V = gniazdo z przewodnikiem zerowym i uziemiającym","400V triphase T+N avec prise de raccordement CEE 16 A","Voeding  400V/230V door middel van eurostopcontact, 3 fase+0+PE max. ","Toite vedu ajamini - 400V/230V, 3 faasi","400V / 230V 3 vaihe+neutraali ja maadoitus tarjotuna Euro pistorasiasta.","Питание 400V/230V посредством заземленной евророзетки, 3 фазы+0+РЕ "]
[{"$nulls":18},"H=",{"$nulls":13},"Zajistit vhodnou montážní plochu pro řídící jednotku motoru 250 x 400 mm","Zajistit vhodnou montážní plochu pro řídící jednotku motoru 250 x 400 mm","Provide suitable mounting surface for control panel, dimensions 250 x 400 mm","Montagefläche für Schaltkasten, Abmessungen 250 x 400 mm","Zapewnić odpowiednią powierzchnię montażową dla jednostki sterującej silnika 250x400","Assurer une surface de montage adéquate pour le coffret de commande du moteur L.250 x H.400 mm","Montagevlak t.b.v. schakelkast, afmetingen 250 x 400 mm","Kontrolleri jaoks piisava paigaldusruumi tagamine 250x400 mm","Tarjoa sopivan kiinnityspinnan  ohjauspaneelia varten ,mitat 250 x 400 mm","необходимо обеспечить монтажную поверхность для панели управления, размеры 250х400 мм"]
[{"$nulls":23},{"$f":"VLOOKUP($AG$18,$AG$2:$AR$85,$AE$1+1,FALSE)","v":"Montáž na porobeton"}]
[]
[{"$nulls":32},"NEZBYTNÁ MONTÁŽNÍ PLOCHA","NEZBYTNÁ MONTÁŽNÍ PLOCHA","NECESSARY MOUNTING SURFACE","BENÖTIGTER MONTAGEFLÄCHEN","NIEZBĘDNA POWIERZCHNIA MONTAŻOWA","SURFACE NECESSAIRE DE MONTAGE","BENODIGDE MONTAGEVLAKKEN","Vajalik paigaldusruum","TARVITTAVA KIINNITYSPINTA","необходимая монтажная поверхность"]
[{"$nulls":32},"DODATEČNÉ MONTÁŽNÍ PLOCHY PRO KONZOLY","DODATEČNÉ MONTÁŽNÍ PLOCHY PRO KONZOLY","EXTRA PLANES AT WEAK SURFACES","MONTAGEFLÄCHE FÜR DEN MOTOR","Dodatkowych obszarach montażu konsoli","FACILITÉ DE MONTAGE ADDITIONNEL POUR CONSOLE","EXTRA VLAKKEN BIJ ZWAKKE ONDERGROND","Lisaplaadid nõrgale pinnale","LISÄ ASENNUSTILA ","металлокаркас из стальной профильной трубы"]
[null,null,{"$f":"IF(AND($J$7=$AG$94,$Q$7=$AG$98),420,IF(AND($J$7=$AG$95,$Q$7=$AG$98),420,270))","v":270},null,null,{"$f":"$J$3","v":0},null,{"$f":"IF(AND($J$7=$AG$94,$Q$7=$AG$99),420,IF(AND($J$7=$AG$95,$Q$7=$AG$99),420,270))","v":270},{"$nulls":15},{"$f":"VLOOKUP($AG$19,$AG$2:$AR$85,$AE$1+1,FALSE)","v":"Montáž na opláštění"},{"$nulls":8},"NEZBYTNÝ VOLNÝ PROSTOR","NEZBYTNÝ VOLNÝ PROSTOR","NECESSARY FREE ROOM","BENÖTIGTER FREIRAUM","niezbędne miejsce","ESPACE LIBRE NECESSAIRE","BENODIGDE VRIJE RUIMTE","Vajalik vaba ruum ","TARVITTAVA VAPAA TILA","необходимое свободное пространство"]
[{"$nulls":32},"VOLNÝ PROSTOR PRO MOTOR/ŘETĚZ.PŘEVOD","VOLNÝ PROSTOR PRO MOTOR/ŘETĚZ.PŘEVOD","EXTRA FREE ROOM FOR MOTOR/CHAIN","EXTRA FREIRAUM FÜR MOTOR/KETTE","Wolnego miejsca na silnik, napęd łańcuchowy","ESPACE LIBRE POUR MOTEUR / CHAINE DE LEVAGE.","EXTRA VRIJE RUIMTE BIJ MOTOR/KETTING","Lisa vaba ruum mootorile/ketile","LISÄTILA MOOTORIA/KETJUA VARTEN","дополнительное свободное пространство для двигателя/подъемной цепи"]
[{"$nulls":4},{"$f":"VLOOKUP(AG7,AG2:AR85,$AE$1+1,FALSE)","v":"ŘEZ B-B"},{"$nulls":5},"B",null,{"$f":"VLOOKUP(AG37,AG2:AR85,$AE$1+1,FALSE)","v":"sklon podlahy"}]
[]
[{"$nulls":32},"sklon podlahy","sklon podlahy","fall of the floor","Bodenneigung","nachylenie podłogi","réservations seuil béton","vloer met waterkering","pinna langus","kaltevuus","пол с водоотводом"]
[{"$nulls":32},"směrem ven","směrem ven","outside","nach aussen","w kierunku na zewnątrz","à l'extérieur","buitenzijde","väljaspool","ulkopuoli"]
[{"$nulls":32},"sklon 3%","sklon 3%","fall 3%","Gefälle 3%","nachylenie 3%","PENTE 3%","afschot 3%","langus 3%","kaltevuus 3%","наклон 3%"]
[{"$nulls":5},{"$f":"$C$33+$F$33+$H$33","v":540},{"$nulls":26},"směrem ven","směrem ven","internal level","Wasserschenkel","w kierunku na zewnątrz","réservations seuil béton","niveau binnen","Sisemine tasand","sisäinen taso"]
[{"$nulls":17},{"$f":"VLOOKUP(AG31,AG2:AR85,$AE$1+1,FALSE)","v":"NEZBYTNÁ MONTÁŽNÍ PLOCHA"},{"$nulls":5},{"$f":"VLOOKUP(AG33,AG4:AR86,$AE$1+1,FALSE)","v":"NEZBYTNÝ VOLNÝ PROSTOR"},{"$nulls":8},"sklon podlahy","sklon podlahy","floor with raised","Boden mit","nachylenie podłogi","pente du plancher","vloer met  ","põrand koos tõstetud sisetasandiga","lattia nostetulla","пол с наклоном 3%"]
[]
[{"$nulls":17},{"$f":"VLOOKUP(AG32,AG4:AR86,$AE$1+1,FALSE)","v":"DODATEČNÉ MONTÁŽNÍ PLOCHY PRO KONZOLY"}]
[{"$nulls":32},"nezbytný boční prostor pro motor nebo řetězový pohon ( L nebo R )","nezbytný boční prostor pro motor nebo řetězový pohon ( L nebo R )","necessary side room for electrical- or hauling chain operation (L or R)","Benötigter Freiraum bei Elektro- oder Haspelkettenbedienung (wahlweise L oder R)","niezbędna przestrzeń boczna dla silnika lub napędu łańcuchowego ( L lub R )","écoinçon minimum requis pour le moteur ou treuil a chaîne (L ou R)","benodigde vrije ruimte voor elektrische- of ketting bediening (L of R)","vajalik küljeruum mootori või tali puhul (L või R)","tarvittava tila mootori- tai ketjunostolle (L tai R)","необходимое боковое пространство для электропривода или цепного редуктора (L и R)"]
[null,{"$f":"VLOOKUP(AG8,AG2:AR85,$AE$1+1,FALSE)","v":"POZNÁMKA:"},{"$nulls":30},"montážní plocha pro řídící jednotku motoru, rozměr 250 x 400 mm","montážní plocha pro řídící jednotku motoru, rozměr 250 x 400 mm","mounting surface for control panel dimensions 250 x 400 mm","Montagefläche für Antriebsteuerung Mass 250 x 400 mm","powierzchnia montażowa dla jednostki sterującej silnika wymiary 250 x 400 mm","surface de montage pour le Coffret de commande  du moteur (dimensions : L.250 x H.400 mm)","montagevlak t.b.v. schakelkast afmetingen 250 x 400 mm","paigalduspind 250x400 mm kontrollerile","kiinnityspinta ohjauspaneelia varten ,mitat 250 x 400 mm","монтажная поверхность для блока управления 250x400мм"]
[{"$nulls":32},"osa cca 1.400 až 1.500 mm od podlahy","osa cca 1.400 až 1.500 mm od podlahy","center line ca 1.400 -1.500 mm above floor","Achse ca. 1.400 bis 1.500 mm vom Boden","oś ok. 1.400 do 1.500 mm od podłogi","axe d'env. 1 400 a 1 500 mm a compter ","hartlijn ca. 1.400 - 1.500 boven de vloer","Keskjoon ca 1400-1500 mm põrandast","keskiviiva ca 1,400 -1,500 mm: n korkeudella lattiasta","осевая линия примерно 1.400-1.500 мм над уровнем пола"]
[null,{"$f":"VLOOKUP(AG50,AG2:AR85,$AE$1+1,FALSE)","v":"Stěna nad překladem, stěny vedle otvoru a plochy pro montáž konzol musí být rovné a v jedné rovině."},{"$nulls":15},{"$f":"VLOOKUP(AG22,AG2:AR85,$AE$1+1,FALSE)","v":"PRÁCE, KTERÉ MUSÍ BÝT PROVEDENY ZÁKAZNÍKEM PŘED MONTÁŽÍ, POKUD NEBYLO DOHODNUTO JINAK"},{"$nulls":14},"zásuvka CEE 16 A, 5P, 400 V, jištěno 6 A (10 A) jističem, proudový chránič I=30 mA","zásuvka CEE 16 A, 5P, 400 V, jištěno 6 A (10 A) jističem, proudový chránič I=30 mA","Electric outlet CEE 16 A, 5P, 400 V, protect by 6 A (10 A) circuit breaker, residual current device I=30 mA.","Steckdose CEE 16 A, 5P, 400 V, Sicherung 6 A (10 A) mit Schutzschalter, Stromschutz  I=30 mA.","gniazdo CEE 16 A, 5P, 400 V, ochrona za pomocą bezpiecznika 6A (10A), wyłącznik prądowy l=30 mA","prise CEE 16 A, 5P, 400 V, assuré par un disjoncteur 6 A (10 A),  disjoncteur I=30 mA","Eurostopcontact CEE 16 A, 5P, 400V, afgezekerd met 6A (10A), Overstroombeveiliging I=30mA. ","jõupesa CEE 16A, 5P, 400V koos 6A (10A) kaitsmega. Rikkevookukaitse I=30 mA","Pistorasiasta CEE 16A, 5P, 400V, suojattu 6 A (10 A) katkaisijalla, vikavirtasuoja I = 30 mA.","электрическая розетка CEE 16А, 5P, 400V, защита автоматическим выключателем 6А(10А), устройство защитного отключения (УЗО) I=30mA"]
[null,{"$f":"VLOOKUP(AG51,AG2:AR85,$AE$1+1,FALSE)","v":"Otvor musí být svislý a obdélníkový."}]
[null,{"$f":"VLOOKUP(AG52,AG2:AR85,$AE$1+1,FALSE)","v":"Podlaha musí být rovná a vodorovná."},{"$nulls":15},{"$f":"VLOOKUP(AG23,AG2:AR85,$AE$1+1,FALSE)","v":"Konstrukční:"}]
[{"$nulls":17},{"$f":"VLOOKUP(AG24,AG2:AR85,$AE$1+1,FALSE)","v":"Příprava montážních ploch pro vedení vrat a pro pružiny."},{"$nulls":14},"Stěna nad překladem, stěny vedle otvoru a plochy pro montáž konzol musí být rovné a v jedné rovině.","Stěna nad překladem, stěny vedle otvoru a plochy pro montáž konzol musí být rovné a v jedné rovině.","The rear face of the lintel and the door jambs, as well as the surface for the spring packet must be levelled and in line.","Die hinteren Seiten der Sturze und Pfeiler, sowie die Montagefläche für das Federpaket müssen eben und auf einer Linie liegen.","Ściany tłumaczenia, obok ściany otworu oraz wszystkie obszary i zbiórki musi być kolor.","La surface d'appui pour la pose de la porte sectionnelle doit etre dans le meme plan et verticale.","De achterkanten van de penanten, de latei en de montagevlakken van het verenpakket dienen vlak en in één lijn te liggen.","Kõik paigalduspinnad peavad olema ühes tasapinnas ja loodis","Ylä ja sivukarmien sekä jousipaketin asennuspinnan pitää olla tasaisia ja samassa linjassa","Монтажная поверхность должна быть ровной и распологаться в одной вертикальной плоскости"]
[null,{"$f":"VLOOKUP(AG55,AG2:AR85,$AE$1+1,FALSE)","v":"Rozměry jsou v mm"},{"$nulls":30},"Otvor musí být svislý a obdélníkový.","Otvor musí být svislý a obdélníkový.","Furthermore the opening must be plumb and square.","Im übrigen müssen die lichten Masse eben und rechtwinklig sein.","Otwór musi być pionowy i prostokątny.","L'ouverture de la baie doit etre parfaitement de niveau et d'equerre.","Tevens moet de dagmaat vlak en haaks zijn.","Ava peab olema täpne ja nelinurkne","Lisäksi oviaukon pitää olla pysty- ja vaakasuora sekä nelikulmainen.","Проем также должен быть ровным и прямоугольным."]
[null,"W =",{"$f":"VLOOKUP(AG56,AG2:AR85,$AE$1+1,FALSE)","v":"Šířka otvoru"},{"$nulls":3},{"$f":"VLOOKUP(AG65,AG6:AR88,$AE$1+1,FALSE)","v":"Ruční ovládání"},{"$nulls":5},{"$f":"VLOOKUP(AG70,AG6:AR88,$AE$1+1,FALSE)","v":"Volný prostor nad překladem"},{"$nulls":4},{"$f":"VLOOKUP(AG25,AG2:AR85,$AE$1+1,FALSE)","v":"Nezbytné montážní plochy a volný prostor dle nákresu."},{"$nulls":14},"Podlaha musí být rovná a vodorovná.","Podlaha musí být rovná a vodorovná.","Floor area must be flat and horizontal.","Der Fussboden muss glatt und waagerecht sein.","Podłoga musi być równa i pozioma.","Le sol doit etre parfaitement horizontal et plan.","De afgewerkte vloer dient vlak en waterpas te liggen.","Põrandapind peab olema sile ja horisontaalne","Lattian pitää olla tasainen ja vaakasuora.","Обработанный пол должен быть ровным и без склонов."]
[null,"H =",{"$f":"VLOOKUP(AG57,AG3:AR85,$AE$1+1,FALSE)","v":"Výška otvoru"},{"$nulls":3},"L/R",{"$f":"VLOOKUP(AG66,AG6:AR88,$AE$1+1,FALSE)","v":"Obě strany"},{"$nulls":3},"min. 270","F",null,"H + 420",{"$f":"IF(OR(J3=\"\",J5=\"\"),\"\",$J$5+420)","v":""},null,{"$f":"VLOOKUP(AG26,AG2:AR85,$AE$1+1,FALSE)","v":"Elekrická příprava (pro elektricky ovládaná sekční vrata): "}]
[null,"E = ","Výška stropu",{"$nulls":9},"J",null,"H + 150",{"$f":"IF(OR(J3=\"\",J5=\"\"),\"\",$J$5+150)","v":""},null,{"$f":"VLOOKUP(AG27,AG2:AR85,$AE$1+1,FALSE)","v":"Zásuvka CEE 16 A, 5P, 400 V = zásuvka s nulovým a zemnícím vodičem"}]
[null,"F = ","Volný prostor nad překladem",{"$nulls":3},{"$f":"VLOOKUP(AG67,AG6:AR88,$AE$1+1,FALSE)","v":"Ovládání elektricky nebo řetězovým převodem"},{"$nulls":5},"E",null,"min. H + F",{"$f":"IF(OR(J3=\"\",J5=\"\"),\"\",\"min \"&J5+P53)","v":""},{"$nulls":16},"Rozměry jsou v mm","Rozměry jsou v mm","UNITS in mm","MASSE in mm","Wymiary podane w mm","MESURES en mm","MATEN in mm","Mõõdud mm","YKSIKKÖ mm","размеры в мм:"]
[null,"J = ","Výška montážní plochy nad otvorem",{"$nulls":3},"L/R",{"$f":"VLOOKUP(AG68,AG6:AR88,$AE$1+1,FALSE)","v":"Motor nebo řetěz. př."},{"$nulls":3},"min. 420",{"$f":"VLOOKUP(AG71,AG6:AR88,$AE$1+1,FALSE)","v":"Osa hřídele nad překladem"},{"$nulls":4},{"$f":"VLOOKUP(AG74,AG2:AR85,$AE$1+1,FALSE)","v":"Sestavil:"},null,{"$f":"VLOOKUP(AG75,AG2:AR85,$AE$1+1,FALSE)","v":"Upravil:"},null,{"$f":"VLOOKUP(AG76,AG2:AR85,$AE$1+1,FALSE)","v":"Schváleno - datum:"},null,{"$f":"VLOOKUP(AG77,AG2:AR85,$AE$1+1,FALSE)","v":"Název souboru:"},null,{"$f":"VLOOKUP(AG78,AG2:AR85,$AE$1+1,FALSE)","v":"Datum:"},{"$f":"VLOOKUP(AG79,AG2:AR85,$AE$1+1,FALSE)","v":"Měřítko"},{"$f":"VLOOKUP(AG80,AG2:AR85,$AE$1+1,FALSE)","v":"Formát: "},{"$nulls":4},"Šířka otvoru","Šířka otvoru","Opening width","Lichte Breite","Szerokość otworu","LARGEUR DE BAIE","Dagmaat breedte","Ava laius","Oviaukon leveys","ширина проема"]
[null,"L = ","Volný prostor vlevo",{"$nulls":9},"A",null,null,670,null,"K. Luňák",null,"R. Kříž",null,"2021-05-12",null,"STP",null,"2021-05-12","-","A3",{"$nulls":4},"Výška otvoru","Výška otvoru","Opening height","Lichte Höhe","Wysokość otworu","HAUTEUR DE BAIE","Dagmaat hoogte","Ava kõrgus","Oviaukon korkeus","высота проема"]
[null,"R = ","Volný prostor vravo",{"$nulls":3},{"$f":"VLOOKUP(AG69,AG6:AR88,$AE$1+1,FALSE)","v":"Hloubka vedení"},{"$nulls":10},"http://door-documents.com/en/indy-installation-drawing-vl-t",{"$nulls":3},{"$f":"VLOOKUP(AG81,AG2:AR85,$AE$1+1,FALSE)","v":"STAVEBNÍ PŘIPRAVENOST"},{"$nulls":10},"Výška stropu","Výška stropu","Interior height","Höhe Innenraum","Wysokość stropu","HAUTEUR SOUS PLAFOND","Hoogte binnenruimte","Sisemine kõrgus","sisäkorkeus","высота внутри помещения до перекрытий"]
[null,"D = ","Hloubka vedení",{"$nulls":3},"D",{"$nulls":4},"min. 600","Z",{"$f":"IF(AND(J3<=3000,J5<=3000),AG86,350)","v":"NENÍ POŽADOVÁNO"},{"$nulls":18},"Volný prostor nad překladem","Volný prostor nad překladem","Free room above lintel","Freiraum über Sturz","Wolna przestrzeń nad nadprożem","RETOMBEE DE LINTEAU DISPONIBLE","Vrije ruimte boven latei","Vaba ruum laeni","vapaa ylätila","свободное пространство над проемом"]
[null,"Q = ","Volný prostor nad vertikálním vedením",{"$nulls":18},{"$f":"AG10","v":"VERTIKÁLNÍ VEDENÍ S PŘEDMONT. HŘÍDELÍ  (VL-T)"},{"$nulls":10},"Výška montážní plochy nad otvorem","Výška montážní plochy nad otvorem","Height of frame above opening","Höhe über Montagefläche Loch","Wysokość powyżej otworu montażowego powierzchni","HAUTEUR AU-DESSUS DU TROU DE SURFACE DE MONTAGE","Hoogte frame boven latei","Raami kõrgus ava kohal","Rungon korkeus oviaukon yläpuolella.","высота конструкции ворот над проемом"]
[{"$nulls":32},"Volný prostor vlevo","Volný prostor vlevo","Free side room left","Freiraum LINKS","Wolna przestrzeń W LEWO","ECOINCON GAUCHE","Vrije zijruimte links","Vaba küljeruum vasakul","vapaa tila vasemalla","свободное боковое пространство СЛЕВА"]
[{"$nulls":21},{"$f":"VLOOKUP(AG82,AG2:AR85,$AE$1+1,FALSE)","v":"pružiny nad překladem "},{"$nulls":3},{"$f":"VLOOKUP(AG84,AG2:AR85,$AE$1+1,FALSE)","v":"Kód:"},{"$f":"VLOOKUP(AG85,AG2:AR85,$AE$1+1,FALSE)","v":"Verze:"},{"$nulls":5},"Volný prostor vravo","Volný prostor vravo","Free side room right","Freiraum RECHTS","Wolna przestrzeń W PRAWO","ECOINCON DROITE","Vrije zijruimte rechts","Vaba küljeruum paremal","vapaa tila oikealla","свободное боковое пространство СПРАВА"]
[{"$nulls":25},"C45-C1",2119,{"$nulls":5},"Hloubka vedení","Hloubka vedení","Back room","Einbautiefe","Głębokość prowadzenia poziomego","REFOULEMENT HORS-TOUT","Inbouwdiepte","Sügavus","tila takana","монтажная глубина"]
[{"$nulls":32},"Volný prostor nad vertikálním vedením","Volný prostor nad vertikálním vedením","Free room above mounting surface","Freiplatz auf der Mountageplatz","Wolny przestrzeń nad nadproźem","Espace au-dessus de la surface de montage","Ruimte boven montagevlak","Vaba ruum ülalpool paigalduspinda","Vapaa tila asennuspisten kohdalla","технологический зазор"]
[{"$nulls":32},"Ruční ovládání","Ruční ovládání","Manually operated","Handbedienung","Sterowanie ręczne","PORTE MANUELLE","Handbediend","Käsitsi avatav","Käsikäyttöinen","ручное управление"]
[{"$nulls":32},"Obě strany","Obě strany","Both sided","Beide Seiten","Obie strony","LES 2 COTES","Beide zijden","Mõlemal pool","\nKaksipuoleinen","обе стороны"]
[{"$nulls":32},{"$f":"VLOOKUP(AH67,AH67:AR150,$AE$1,FALSE)","v":"Ovládání elektricky nebo řetězovým převodem"},"Ovládání elektricky nebo řetězovým převodem","Electrical or hauling chain operated","Elektrisch- oder Haspelkettenbedient","Sterowanie elektr. lub za pom. przekł. łańc.","PORTE MOTORISEE OU AVEC TREUIL A CHAINE","Elektrisch- of handketting bediend","Elektriliselt või taliga avatav","Sähkö- tai ketjukäytöinen","электрическое управление или с помощью цепи"]
[{"$nulls":32},"Motor nebo řetěz. př.","Motor nebo řetěz. př.","Motor or chain side","Motor-oder Kettenseite","Silnik lub przekł. łańc.","ECOINCON LIBRE A COTE DE MOTEUR","Motor- of kettingzijde","Mootori või tali pool","Mootorin tai ketjun puolinen","сторона цепи или мотора"]
[{"$nulls":32},"Hloubka vedení","Hloubka vedení","Back room","Einbautiefe","Głębokość prowadzenia","REFOULEMENT HORS-TOUT","Inbouwdiepte","Sügavus","Tila takana","монтажная глубина"]
[{"$nulls":32},"Volný prostor nad překladem","Volný prostor nad překladem","Free room above lintel","Freiraum über Sturz","Wolna przestrzeń nad nadprożem (min.)","RETOMBEE DE LINTEAU DISPONIBLE","Vrije ruimte boven latei","Vaba ruum sillusest  laeni","Tila oviaukon päällä","свободное пространство над проемом"]
[{"$nulls":32},"Osa hřídele nad překladem","Osa hřídele nad překladem","Height of shaft above lintel","Mitte Achse zum Sturz","Oś wału nad nadprożem","POSITIONNEMENT AXE DE l'ARBRE DE LINTEAU","Center as boven latei","Kesktelg","Akseli ovipalkkin päällä","центральная ось вала"]
[]
[]
[{"$nulls":32},"Sestavil:","Sestavil:","Designed by:","Aufgestellt:","Wykonał:","DESSINE PAR:","Getekend door:","Joonestatud:","\nSuunnitellut:","спроектировано:"]
[{"$nulls":32},"Upravil:","Upravil:","Checked by","Bereinigt:","Skorygował:","MODIFIE PAR:","Gecontroleerd door:","Kontrollitud:","Tarkistanut","проверил:"]
[{"$nulls":32},"Schváleno - datum:","Schváleno - datum:","Approved by - date:","Bereinigt am:","Skorygowano dnia:","MODIFIE LE (DATE):","Goedgekeurd door - datum:","Kinnitatud:","\nHyväksytty - päivämäärä:","одобрил-дата:"]
[{"$nulls":32},"Název souboru:","Název souboru:","File name:","Dateiname:","Nazwa pliku:","TITRE:","Bestandsnaam","Faili nimi:","\nTiedoston nimi:","навание файла:"]
[{"$nulls":32},"Datum:","Datum:","Date:","Datum:","Data:","DATE:","Datum:","Kuupäev:","Päivämäärä:","дата:"]
[{"$nulls":32},"Měřítko","Měřítko","Scale:","Massst.:","Podział.:","ECHELLE:","Schaal:","Mõõtkava:","Mittakaava:","шкала:"]
[{"$nulls":32},"Formát: ","Formát: ","Sheet:","Format:","Format:","FORMAT:","Sheet:","Formaat:","Lista:","лист:"]
[{"$nulls":32},{"$f":"VLOOKUP(AH81,AH81:AR172,$AE$1,FALSE)","v":"STAVEBNÍ PŘIPRAVENOST"},"STAVEBNÍ PŘIPRAVENOST","INSTALLATION DRAWING","BAUBEREITSCHAFT","PRZYGOTOWANIE_KONSTRUKCYJNE","PLAN DE RESERVATIONS & ENCOMBREMENTS",null,"Paigaldusjoonis","ASENNUSPIIRUSTUS ","монтажный чертеж"]
[{"$nulls":32},"pružiny nad překladem ","pružiny nad překladem ","springs above lintel ",null,"sprężyny nad nadprożem ",null,"verenpakket boven latei","vedrud ava kohal","jouset ovipalkkin päällä","нижнее расположение вала"]
[{"$nulls":32},"VERTIKÁLNÍ SYSTÉM","VERTIKÁLNÍ SYSTÉM","VERTICAL LIFT SYSTEM",null,"PROWADZENIE PIONOWE (VL-T)","LEVEE VERTICALE (VL)","VERTICAAL PLAFONDSYSTEEM"]
[{"$nulls":32},"Kód:","Kód:","Code:","Kode:","Kod:","CODE:","Nr.:","Kood:","Koodi:","код:"]
[{"$nulls":32},"Verze:","Verze:","Version:","Version:","Wersja:","VERSION:","Versie:","Versioon:","Versio:","версия:"]
[{"$nulls":32},"NENÍ POŽADOVÁNO","NENÍ POŽADOVÁNO","NOT REQUIRED","NICHT ERFORDELICH","Nie jest wymagane","Pas nécessaire","NIET BENODIGD","Mitte vajalik","EI VAADITTU","НЕ ТРЕБУЕТСЯ"]
[]
[{"$nulls":32},"Prosím, vyplňte pole, která jsou označena barevně!","Prosím, vyplňte pole, která jsou označena barevně!","Please, fill in the fields that are marked in color!","Fülen Sie bitte markierte Felder!","Prosimy o wypełnienie pól oznaczonych kolorem!","S'il vous plaît remplissez les champs qui sont marqués en couleur!","Vul a.u.b. de gemarkeerde velden in!","Palun täida värvilised väljad!","\nTäytä kentät, jotka on merkitty värillä!","пожалуйста, заполните поля обозначенные цветом!"]
[]
[{"$nulls":32},{"$f":"VLOOKUP(AH90,AH90:AR166,$AE$1,FALSE)","v":"Ocelovou konstrukci svařit z profilu 100x50x4 dle uvedených rozměrů"},"Ocelovou konstrukci svařit z profilu 100x50x4 dle uvedených rozměrů","Welded steel construction of the profile according to the dimensions 100x50x4","Geschweißte Stahlkonstruktion des Profils nach dem Maße 100x50x4","Stalowa konstrukcja spawana z profilu według wymiarów 100x50x4","Construction en acier soudé du profil en fonction de la dimension 100x50x4","Staalconstructie van het profiel 100x50x4 volgens de afmetingen lassen","Keevitatud teraskonstrukstioon 100x50x4 profiilidest","Profiilin hitsattu teräsrakenne mittojen mukaan 100x50x4","Стальная конструкция из профильной трубы 100х50х4 мм"]
[]
[{"$nulls":32},{"$f":"VLOOKUP(AH92,AH92:AR181,$AE$1,FALSE)","v":"Ovládání"},"Ovládání","Operated","Bedienung","Sterowanie","PORTE","Bediening","Avamine","Ohjattu","Тип управления"]
[{"$nulls":32},"ručně","ručně","manually","hand","ręcznie wykonany","MANUELLE","hand","käsitsi","manuaalisesti","вручную"]
[{"$nulls":32},"elektricky","elektricky","electrical ","elektrisch","elektrycznie","MOTORISEE","elektrisch","elektriliselt","sähköisesti","электрическое управление или с помощью цепи"]
[{"$nulls":32},"řetězovým převodem","řetězovým převodem","hauling chain operated","Haspeklette","Łańcuch napędu","TREUIL A CHAINE","handketting","taliga","ketjukäyttöinen","\nцепной привод\nцепной привод"]
[]
[{"$nulls":32},"Umístění motoru","Umístění motoru","Possition of motor","Antriebesposition","Pozycja sylnika","LA POSITION MOTEUR","Positie van de motor","mootori asukohta","Mootorin asema","расположение мотора"]
[{"$nulls":32},"Na levé straně","Na levé straně","On the left side","Auf der linken Seiten","Po lewej stronie","SUR LE COTE GAUCHE","Aan de linkerzijde","vasakul küljel","Vasemallla","с левой стороны"]
[{"$nulls":32},"Na pravé straně","Na pravé straně","On the right side","Auf der rechten Seiten","Po prawej strony","SUR LE COTE DROIT","Aan de rechterzijde","paremal küljel","Oikealla","с правой стороны"]

{"sheet":"SW-R","index":1,"n_rows":48,"n_cols":6,"rows_kept":48,"merged":[[5,2,13,2],[6,1,9,1],[17,1,20,1],[39,2,40,8],[41,2,42,3],[41,4,42,6],[41,7,48,8],[43,2,44,3],[43,4,44,6],[45,2,46,3],[45,4,46,6],[47,2,48,3],[47,4,48,6]]}
[]
[]
[]
[]
[]
["",null,{"$f":"general!C12","v":"Z= NENÍ POŽADOVÁNO"}]
[null,{"$f":"general!I16","v":"J= "}]
{"$rows_empty":10}
[null,{"$f":"general!J5","v":0}]
{"$rows_empty":10}
[{"$nulls":5},{"$f":"general!J3","v":0}]
{"$rows_empty":10}
[null,null,{"$f":"general!U2","v":"VERTIKÁLNÍ VEDENÍ S PŘEDMONT. HŘÍDELÍ  (VL-T)"}]
[]
[null,null,{"$f":"general!$AG$97","v":"Umístění motoru"},null,{"$f":"general!AG99","v":"Na pravé straně"}]
[]
[null,null,{"$f":"general!R56","v":"Sestavil:"}]
[]
[null,null,{"$f":"general!T56","v":"Upravil:"}]
[]
[null,null,{"$f":"general!Z56","v":"Datum:"}]

{"sheet":"SW-L","index":2,"n_rows":48,"n_cols":6,"rows_kept":48,"merged":[[5,2,13,2],[6,1,9,1],[17,1,20,1],[39,2,40,8],[41,2,42,3],[41,4,42,6],[41,7,48,8],[43,2,44,3],[43,4,44,6],[45,2,46,3],[45,4,46,6],[47,2,48,3],[47,4,48,6]]}
[]
[]
[]
[]
[]
["",null,{"$f":"general!C12","v":"Z= NENÍ POŽADOVÁNO"}]
[null,{"$f":"general!I16","v":"J= "}]
{"$rows_empty":10}
[null,{"$f":"general!J5","v":0}]
{"$rows_empty":10}
[{"$nulls":5},{"$f":"general!J3","v":0}]
{"$rows_empty":10}
[null,null,{"$f":"general!U2","v":"VERTIKÁLNÍ VEDENÍ S PŘEDMONT. HŘÍDELÍ  (VL-T)"}]
[]
[null,null,{"$f":"general!$AG$97","v":"Umístění motoru"},null,{"$f":"general!AG98","v":"Na levé straně"}]
[]
[null,null,{"$f":"general!R56","v":"Sestavil:"}]
[]
[null,null,{"$f":"general!T56","v":"Upravil:"}]
[]
[null,null,{"$f":"general!Z56","v":"Datum:"}]